fUST/lending_fUST_20250811
["ID","MTS","AMOUNT","RATE_DAILY","PERIOD"]
[378481158,1754882499961,460.0,0.00019953,2]
[378481159,1754882501797,460.0,0.00019953,2]
[378481160,1754882506194,460.0,0.00019953,2]
[378481161,1754882509445,460.0,0.00019953,2]
[378481162,1754882510346,460.0,0.00019953,2]
[378481163,1754882520333,460.0,0.00019953,2]
[378481164,1754882523763,1119.61,0.00019953,2]
[378481165,1754882528291,182.57831645,0.00019953,2]
[378481166,1754882530344,223.98303842,0.00019953,2]
[378481167,1754882532088,460.0,0.00019953,2]
[378481168,1754882532706,1200.2,0.00019953,2]
[378481170,1754882541725,509.50607735,0.00019953,2]
[378481171,1754882544230,460.0,0.00019953,2]
[378481173,1754882549514,460.0,0.00019953,2]
[378481174,1754882556212,765.0,0.00019953,2]
[378481175,1754882556332,427.2983729,0.00019953,2]
[378481176,1754882556880,460.0,0.00019953,2]
[378481178,1754882565387,460.0,0.00019953,2]
[378481179,1754882567591,460.0,0.00019953,2]
[378481180,1754882567831,460.0,0.00019953,2]
[378481181,1754882573461,682.65,0.00019953,2]
[378481182,1754882576553,150.0,0.00027427,30]
[378481183,1754882580315,460.0,0.00019953,2]
[378481184,1754882588579,460.0,0.00019953,2]
[378481185,1754882593330,460.0,0.00019953,2]
[378481186,1754882595677,460.0,0.00019953,2]
[378481187,1754882605463,464.52954203,0.00019953,2]
[378481188,1754882608439,2025.04,0.00019953,2]
[378481189,1754882615235,460.0,0.00019953,2]
[378481190,1754882620341,476.83307238,0.00019953,2]
[378481191,1754882620379,460.0,0.00019953,2]
[378481192,1754882622399,460.0,0.00019953,2]
[378481193,1754882624272,2845.1400272,0.000199,2]
[378481194,1754882624659,460.0,0.00019953,2]
[378481195,1754882625616,896.8,0.00019953,2]
[378481196,1754882625850,460.0,0.00019953,2]
[378481197,1754882635393,460.0,0.00019953,2]
[378481198,1754882635732,494.70757364,0.00019854,2]
[378481199,1754882638512,181.40418486,0.00019953,2]
[378481201,1754882643559,460.0,0.00019953,2]
[378481202,1754882649229,460.0,0.00019953,2]
[378481203,1754882656328,460.0,0.00019953,2]
[378481204,1754882660960,460.0,0.00019953,2]
[378481205,1754882661525,460.0,0.00019953,2]
[378481206,1754882665134,460.0,0.00019953,2]
[378481207,1754882665224,460.0,0.00019953,2]
[378481208,1754882667804,460.0,0.00019953,2]
[378481209,1754882670240,460.0,0.00019953,2]
[378481210,1754882675386,470.40732022,0.00019953,2]
[378481211,1754882684922,2058.28,0.00019953,2]
[378481212,1754882689096,1423.69,0.00019953,2]
[378481213,1754882690131,460.0,0.00019953,2]
[378481214,1754882692851,460.0,0.00019953,2]
[378481215,1754882695329,461.43692931,0.00019953,2]
[378481216,1754882698294,460.0,0.00019953,2]
[378481217,1754882709315,460.0,0.00019953,2]
[378481218,1754882714859,460.0,0.00019953,2]
[378481219,1754882716533,1092.12,0.00019953,2]
[378481220,1754882719294,299.59,0.00030137,120]
[378481221,1754882722976,460.0,0.00019953,2]
[378481222,1754882723819,150.0,0.00026204,30]
[378481223,1754882724232,150.0,0.00027452,30]
[378481224,1754882726417,1945.28,0.00019953,2]
[378481225,1754882727895,460.0,0.00019953,2]
[378481226,1754882732121,460.0,0.00019953,2]
[378481227,1754882740032,460.0,0.00019953,2]
[378481228,1754882743014,460.0,0.00019953,2]
[378481229,1754882743781,460.0,0.00019953,2]
[378481230,1754882743877,207.51,0.00030137,120]
[378481236,1754882751051,460.0,0.00019953,2]
[378481237,1754882753884,2617.11,0.00019953,2]
[378481238,1754882763421,460.0,0.00019953,2]
[378481239,1754882764965,460.0,0.00019953,2]
[378481240,1754882772347,460.0,0.00019953,2]
[378481241,1754882774579,460.0,0.00019953,2]
[378481242,1754882775440,460.0,0.00019953,2]
[378481243,1754882779803,2508.06,0.00019953,2]
[378481245,1754882787718,988.03,0.00019953,2]
[378481246,1754882790128,461.67333827,0.00019953,2]
[378481247,1754882799079,460.0,0.00019953,2]
[378481249,1754882807260,859.43,0.00019953,2]
[378481250,1754882807546,460.0,0.00019953,2]
[378481251,1754882809773,460.0,0.00019953,2]
[378481252,1754882813892,460.0,0.00019953,2]
[378481253,1754882818681,460.0,0.00019953,2]
[378481254,1754882819832,500.0,0.00019953,2]
[378481255,1754882824896,460.0,0.00019953,2]
[378481256,1754882825400,460.0,0.00019953,2]
[378481257,1754882827611,460.0,0.00019953,2]
[378481258,1754882827900,460.0,0.00019953,2]
[378481259,1754882834169,460.0,0.00019953,2]
[378481260,1754882835168,2745.83175607,0.000199,2]
[378481261,1754882835998,432.8691269,0.00019854,2]
[378481262,1754882836128,460.0,0.00019953,2]
[378481263,1754882837843,460.0,0.00019953,2]
[378481264,1754882839979,460.0,0.00019953,2]
[378481265,1754882843362,460.0,0.00019953,2]
[378481266,1754882847395,460.0,0.00019953,2]
[378481267,1754882848822,185.94323171,0.00019953,2]
[378481269,1754882854691,413.2669033,0.00019953,2]
[378481270,1754882859504,460.0,0.00019953,2]
[378481271,1754882859734,460.0,0.00019953,2]
[378481272,1754882860225,19102.70314984,0.00031338,30]
[378481273,1754882860359,2011.67,0.00019953,2]
[378481274,1754882862178,460.0,0.00019953,2]
[378481275,1754882862803,460.0,0.00019953,2]
[378481276,1754882862963,460.0,0.00019953,2]
[378481277,1754882864874,460.0,0.00019953,2]
[378481278,1754882866965,460.0,0.00019953,2]
[378481279,1754882867491,1528.05,0.00019953,2]
[378481280,1754882870095,1861.18,0.00019953,2]
[378481281,1754882875921,460.0,0.00019953,2]
[378481282,1754882876035,460.0,0.00019953,2]
[378481283,1754882876853,2027.43,0.00019953,2]
[378481284,1754882879145,460.0,0.00019953,2]
[378481285,1754882879327,1737.49,0.00019953,2]
[378481286,1754882879496,460.0,0.00019953,2]
[378481287,1754882882767,460.0,0.00019953,2]
[378481288,1754882884151,460.0,0.00019953,2]
[378481289,1754882885395,727.19,0.00019953,2]
[378481290,1754882885618,171.763576,0.00013699,2]
[378481291,1754882885764,460.0,0.00019953,2]
[378481292,1754882886701,460.0,0.00019953,2]
[378481293,1754882888043,2892.19397026,0.000237,30]
[378481294,1754882889908,460.0,0.00019953,2]
[378481296,1754882893426,460.0,0.00019953,2]
[378481297,1754882894194,460.0,0.00019953,2]
[378481298,1754882895880,462.9218187,0.00019953,2]
[378481299,1754882897014,552.15128463,0.00019953,2]
[378481300,1754882900836,460.0,0.00019953,2]
[378481301,1754882903049,1903.58,0.00019953,2]
[378481302,1754882904561,460.0,0.00019953,2]
[378481308,1754882917610,464.78680173,0.00019953,2]
[378481309,1754882918389,460.0,0.00019953,2]
[378481310,1754882918569,460.0,0.00019953,2]
[378481311,1754882920793,1656.56829968,0.00026,30]
[378481312,1754882921126,460.0,0.00019953,2]
[378481313,1754882922067,150.99999986,0.0002,120]
[378481314,1754882922258,983.259219,0.00031338,120]
[378481316,1754882922749,460.0,0.00019953,2]
[378481317,1754882924884,460.0,0.00019953,2]
[378481318,1754882926384,509.00107617,0.00019953,2]
[378481319,1754882927967,6492.50965864,0.00024,30]
[378481320,1754882930447,460.0,0.00019953,2]
[378481321,1754882932262,460.0,0.00019953,2]
[378481322,1754882932811,569.76775152,0.00019953,2]
[378481323,1754882932845,460.0,0.00019953,2]
[378481324,1754882933619,460.0,0.00019953,2]
[378481325,1754882934139,460.0,0.00019953,2]
[378481326,1754882936617,242.86322468,0.00019953,2]
[378481327,1754882936892,460.0,0.00019953,2]
[378481328,1754882939654,460.0,0.00019953,2]
[378481330,1754882942152,460.0,0.00019953,2]
[378481331,1754882946967,460.0,0.00019953,2]
[378481332,1754882949122,460.0,0.00019953,2]
[378481333,1754882949157,460.0,0.00019953,2]
[378481334,1754882952178,460.0,0.00019953,2]
[378481336,1754882953447,463.68864942,0.00019953,2]
[378481337,1754882954588,460.0,0.00019953,2]
[378481338,1754882955630,460.0,0.00019953,2]
[378481339,1754882956985,460.0,0.00019953,2]
[378481340,1754882957538,460.0,0.00019953,2]
[378481341,1754882959490,1142.45,0.00019953,2]
[378481342,1754882960627,460.0,0.00019953,2]
[378481344,1754882962183,460.0,0.00019953,2]
[378481345,1754882963399,513.29076413,0.00019953,2]
[378481346,1754882965328,513.3,0.00019953,2]
[378481347,1754882966065,460.0,0.00019953,2]
[378481348,1754882966214,460.0,0.00019953,2]
[378481349,1754882967720,460.0,0.00019953,2]
[378481350,1754882969915,554.2781867,0.00019953,2]
[378481351,1754882973390,460.0,0.00019953,2]
[378481352,1754882977214,460.0,0.00019953,2]
[378481353,1754882977946,460.0,0.00019953,2]
[378481354,1754882978046,460.0,0.00019953,2]
[378481355,1754882979489,460.0,0.00019953,2]
[378481356,1754882982796,460.0,0.00019953,2]
[378481357,1754882985261,460.0,0.00019953,2]
[378481358,1754882994770,460.0,0.00019953,2]
[378481359,1754882997558,460.0,0.00019953,2]
[378481360,1754882998784,460.0,0.00019953,2]
[378481361,1754883003323,460.0,0.00019953,2]
[378481362,1754883004845,1162.24,0.00019953,2]
[378481363,1754883005514,460.0,0.00019953,2]
[378481364,1754883005790,460.0,0.00019953,2]
[378481365,1754883012891,460.0,0.00019953,2]
[378481366,1754883013357,460.0,0.00019953,2]
[378481367,1754883013397,460.0,0.00019953,2]
[378481370,1754883016626,467.06768498,0.00019953,2]
[378481371,1754883019238,460.0,0.00019953,2]
[378481372,1754883020688,460.0,0.00019953,2]
[378481373,1754883023039,460.0,0.00019953,2]
[378481374,1754883027734,460.0,0.00019953,2]
[378481375,1754883031317,460.0,0.00019953,2]
[378481396,1754883032480,-1050.63318794,0.00019954,2]
[378481397,1754883032492,-316.48450775,0.00019954,2]
[378481398,1754883032640,-901.91644929,0.00019954,2]
[378481458,1754883033396,460.0,0.00019953,2]
[378481566,1754883034496,460.0,0.00019953,2]
[378481599,1754883034823,460.0,0.00019953,2]
[378481603,1754883036422,460.0,0.00019953,2]
[378481604,1754883037013,200.0,0.000231,29]
[378481605,1754883037454,460.0,0.00019953,2]
[378481611,1754883037853,2654.21886536,0.000199,2]
[378481663,1754883038371,-6927.10308745,0.00019954,2]
[378481665,1754883038381,-337.73187612,0.00019954,2]
[378481667,1754883038391,-460.0,0.00019954,2]
[378481669,1754883038400,-460.0,0.00019954,2]
[378481671,1754883038410,-460.0,0.00019954,2]
[378481673,1754883038419,-463.65279947,0.00019954,2]
[378481675,1754883038429,-460.0,0.00019954,2]
[378481677,1754883038438,-460.0,0.00019954,2]
[378481679,1754883038448,-460.0,0.00019954,2]
[378481681,1754883038457,-460.0,0.00019954,2]
[378481683,1754883038466,-693.47,0.00019954,2]
[378481685,1754883038476,-460.0,0.00019954,2]
[378481687,1754883038489,-460.0,0.00019954,2]
[378481689,1754883038499,-151.0,0.00019954,2]
[378481691,1754883038508,-203.14305158,0.00019954,2]
[378481693,1754883038517,-151.0,0.00019954,2]
[378481695,1754883038527,-500.0,0.00019954,2]
[378481698,1754883038536,-151.0,0.00019954,2]
[378481700,1754883038550,-500.0,0.00019954,2]
[378481701,1754883038560,-500.0,0.00019954,2]
[378481702,1754883038569,-151.0,0.00019954,2]
[378481703,1754883038579,-151.06698248,0.00019954,2]
[378481704,1754883038588,-151.0,0.00019954,2]
[378481705,1754883038597,-151.0,0.00019954,2]
[378481706,1754883038606,-151.0,0.00019954,2]
[378481707,1754883038616,-871.25,0.00019954,2]
[378481708,1754883038629,-460.0,0.00019954,2]
[378481710,1754883038640,-460.0,0.00019954,2]
[378481712,1754883038649,-460.0,0.00019954,2]
[378481714,1754883038659,-500.0,0.00019954,2]
[378481716,1754883038669,-151.87830643,0.00019954,2]
[378481718,1754883038678,-151.0,0.00019954,2]
[378481720,1754883038688,-500.0,0.00019954,2]
[378481722,1754883038697,-500.0,0.00019954,2]
[378481724,1754883038706,-151.0,0.00019954,2]
[378481726,1754883038716,-500.0,0.00019954,2]
[378481728,1754883038725,-460.0,0.00019954,2]
[378481730,1754883038735,-228.62727682,0.00019954,2]
[378481732,1754883038744,-274.24377217,0.00019954,2]
[378481734,1754883038754,-151.35768322,0.00019954,2]
[378481736,1754883038763,-255.45031115,0.00019954,2]
[378481738,1754883038774,-151.15961438,0.00019954,2]
[378481740,1754883038783,-500.0,0.00019954,2]
[378481742,1754883038793,-500.0,0.00019954,2]
[378481744,1754883038802,-151.0,0.00019954,2]
[378481746,1754883038811,-1490.3,0.00019954,2]
[378481748,1754883038821,-460.0,0.00019954,2]
[378481750,1754883038831,-151.0,0.00019954,2]
[378481753,1754883038840,-151.37972287,0.00019954,2]
[378481755,1754883038850,-151.0,0.00019954,2]
[378481757,1754883038859,-151.17284506,0.00019954,2]
[378481759,1754883038869,-267.43775942,0.00019954,2]
[378481761,1754883038879,-460.0,0.00019954,2]
[378481763,1754883038888,-460.0,0.00019954,2]
[378481765,1754883038897,-540.04,0.00019954,2]
[378481767,1754883038907,-500.0,0.00019954,2]
[378481769,1754883038916,-460.0,0.00019954,2]
[378481771,1754883038925,-460.0,0.00019954,2]
[378481773,1754883038935,-500.0,0.00019954,2]
[378481775,1754883038945,-151.0,0.00019954,2]
[378481777,1754883038955,-500.0,0.00019954,2]
[378481779,1754883038964,-151.0,0.00019954,2]
[378481781,1754883038973,-460.0,0.00019954,2]
[378481783,1754883038983,-460.0,0.00019954,2]
[378481785,1754883038992,-460.0,0.00019954,2]
[378481787,1754883039002,-460.0,0.00019954,2]
[378481789,1754883039012,-460.0,0.00019954,2]
[378481791,1754883039022,-460.0,0.00019954,2]
[378481793,1754883039031,-621.27,0.00019954,2]
[378481795,1754883039042,-465.58985355,0.00019954,2]
[378481797,1754883039051,-151.0,0.00019954,2]
[378481799,1754883039060,-151.0,0.00019954,2]
[378481801,1754883039070,-500.0,0.00019954,2]
[378481803,1754883039079,-500.0,0.00019954,2]
[378481805,1754883039089,-460.0,0.00019954,2]
[378481807,1754883039099,-460.0,0.00019954,2]
[378481809,1754883039109,-460.0,0.00019954,2]
[378481811,1754883039118,-460.0,0.00019954,2]
[378481813,1754883039127,-460.0,0.00019954,2]
[378481815,1754883039137,-2139.93,0.00019954,2]
[378481817,1754883039146,-460.0,0.00019954,2]
[378481819,1754883039156,-958.67,0.00019954,2]
[378481821,1754883039165,-460.0,0.00019955,2]
[378481823,1754883039175,-546.0604165,0.00019955,2]
[378481825,1754883039186,-460.0,0.00019955,2]
[378481827,1754883039195,-460.0,0.00019955,2]
[378481829,1754883039204,-466.50321364,0.00019955,2]
[378481831,1754883039214,-564.10901387,0.00019955,2]
[378481833,1754883039223,-460.0,0.00019955,2]
[378481835,1754883039232,-460.0,0.00019955,2]
[378481837,1754883039242,-575.64687827,0.00019955,2]
[378481839,1754883039251,-460.0,0.00019955,2]
[378481841,1754883039260,-460.0,0.00019955,2]
[378481843,1754883039270,-460.0,0.00019955,2]
[378481845,1754883039279,-461.33633554,0.00019955,2]
[378481847,1754883039288,-460.0,0.00019955,2]
[378481849,1754883039299,-500.0,0.00019955,2]
[378481851,1754883039308,-395.01718698,0.00019955,2]
[378481853,1754883039318,-500.0,0.00019955,2]
[378481854,1754883039327,-500.0,0.00019955,2]
[378481856,1754883039335,-500.0,0.00019955,2]
[378481858,1754883039345,-151.0,0.00019955,2]
[378481860,1754883039354,-500.0,0.00019955,2]
[378481863,1754883039363,-460.0,0.00019955,2]
[378481865,1754883039373,-460.0,0.00019955,2]
[378481867,1754883039383,-460.0,0.00019955,2]
[378481869,1754883039392,-460.0,0.00019955,2]
[378481870,1754883039401,-460.0,0.00019955,2]
[378481891,1754883039579,-460.0,0.00019955,2]
[378481893,1754883039588,-460.0,0.00019955,2]
[378481895,1754883039599,-460.0,0.00019955,2]
[378481897,1754883039608,-460.0,0.00019955,2]
[378481899,1754883039617,-2409.77,0.00019955,2]
[378481901,1754883039629,-500.0,0.00019955,2]
[378481903,1754883039638,-807.32,0.00019955,2]
[378481905,1754883039647,-500.0,0.00019955,2]
[378481907,1754883039656,-460.0,0.00019955,2]
[378481909,1754883039665,-460.0,0.00019955,2]
[378481911,1754883039674,-460.0,0.00019955,2]
[378481913,1754883039684,-460.0,0.00019955,2]
[378481916,1754883039694,-1639.77,0.00019955,2]
[378481918,1754883039703,-460.0,0.00019955,2]
[378481921,1754883039713,-500.0,0.00019955,2]
[378481923,1754883039722,-16014.87054974,0.0001999,2]
[378481925,1754883039732,-1403.44739703,0.00020129,2]
[378481927,1754883039741,-1948.17100673,0.00020129,2]
[378481929,1754883039751,-171.763576,0.00020187,2]
[378481931,1754883039761,-613.46,0.00020218,3]
[378481933,1754883039771,-306.73,0.00020218,3]
[378481935,1754883039780,-613.49,0.00020218,3]
[378481937,1754883039789,-826.96,0.00020218,3]
[378481939,1754883039799,-1226.92,0.00020219,3]
[378481941,1754883039809,-500.0,0.00020226,2]
[378481943,1754883039818,-460.0,0.00020227,2]
[378481946,1754883039827,-460.0,0.00020227,2]
[378481948,1754883039836,-460.0,0.00020227,2]
[378481950,1754883039845,-256.68857201,0.00020227,2]
[378481952,1754883039854,-272.39445262,0.00020227,2]
[378481954,1754883039863,-460.0,0.00020227,2]
[378481956,1754883039872,-460.0,0.00020227,2]
[378481958,1754883039881,-460.0,0.00020227,2]
[378481960,1754883039890,-460.0,0.00020227,2]
[378481962,1754883039899,-462.82946751,0.00020227,2]
[378481964,1754883039908,-460.0,0.00020227,2]
[378481966,1754883039918,-460.0,0.00020227,2]
[378481968,1754883039927,-460.0,0.00020227,2]
[378481970,1754883039936,-460.0,0.00020227,2]
[378481972,1754883039945,-460.0,0.00020227,2]
[378481974,1754883039954,-460.0,0.00020227,2]
[378481976,1754883039963,-460.0,0.00020227,2]
[378481978,1754883039972,-460.0,0.00020227,2]
[378481980,1754883039982,-1302.69,0.00020227,2]
[378481982,1754883039991,-837.1,0.00020227,2]
[378481984,1754883040000,-478.59723656,0.00020227,2]
[378481986,1754883040009,-420.46097422,0.00020227,2]
[378481988,1754883040019,-460.0,0.00020227,2]
[378481990,1754883040028,-460.0,0.00020227,2]
[378481992,1754883040038,-460.0,0.00020227,2]
[378481994,1754883040048,-460.0,0.00020227,2]
[378481996,1754883040057,-2508.06,0.00020227,2]
[378481998,1754883040066,-988.03,0.00020227,2]
[378481999,1754883040075,-859.43,0.00020227,2]
[378482000,1754883040085,-460.0,0.00020227,2]
[378482001,1754883040094,-460.0,0.00020227,2]
[378482002,1754883040103,-462.75009355,0.00020227,2]
[378482003,1754883040112,-1386.06,0.00020227,2]
[378482004,1754883040121,-472.07234771,0.00020227,2]
[378482005,1754883040130,-460.0,0.00020227,2]
[378482006,1754883040139,-2011.67,0.00020227,2]
[378482007,1754883040149,-460.0,0.00020227,2]
[378482008,1754883040158,-1528.05,0.00020227,2]
[378482009,1754883040167,-460.0,0.00020227,2]
[378482010,1754883040176,-1737.49,0.00020227,2]
[378482011,1754883040186,-460.0,0.00020227,2]
[378482012,1754883040195,-460.0,0.00020227,2]
[378482013,1754883040205,-727.19,0.00020227,2]
[378482014,1754883040215,-460.0,0.00020227,2]
[378482015,1754883040224,-460.0,0.00020227,2]
[378482016,1754883040234,-460.0,0.00020227,2]
[378482017,1754883040243,-460.0,0.00020227,2]
[378482018,1754883040253,-460.0,0.00020227,2]
[378482019,1754883040262,-460.0,0.00020227,2]
[378482020,1754883040271,-1903.58,0.00020227,2]
[378482021,1754883040281,-460.0,0.00020227,2]
[378482022,1754883040290,-460.0,0.00020227,2]
[378482023,1754883040299,-460.0,0.00020227,2]
[378482024,1754883040308,-460.0,0.00020227,2]
[378482025,1754883040317,-460.0,0.00020227,2]
[378482026,1754883040326,-460.0,0.00020227,2]
[378482028,1754883040335,-460.0,0.00020227,2]
[378482030,1754883040344,-460.0,0.00020227,2]
[378482032,1754883040354,-460.0,0.00020227,2]
[378482034,1754883040363,-460.0,0.00020227,2]
[378482036,1754883040372,-460.0,0.00020227,2]
[378482038,1754883040382,-460.0,0.00020227,2]
[378482040,1754883040391,-460.0,0.00020227,2]
[378482042,1754883040400,-460.0,0.00020227,2]
[378482044,1754883040409,-460.0,0.00020227,2]
[378482046,1754883040419,-460.0,0.00020227,2]
[378482048,1754883040427,-460.0,0.00020227,2]
[378482050,1754883040438,-460.0,0.00020227,2]
[378482052,1754883040447,-1142.45,0.00020227,2]
[378482054,1754883040456,-460.0,0.00020227,2]
[378482056,1754883040466,-513.3,0.00020227,2]
[378482058,1754883040475,-460.0,0.00020227,2]
[378482060,1754883040484,-460.0,0.00020227,2]
[378482062,1754883040493,-539.5,0.00020227,2]
[378482064,1754883040503,-460.0,0.00020227,2]
[378482066,1754883040512,-460.0,0.00020227,2]
[378482068,1754883040521,-460.0,0.00020227,2]
[378482070,1754883040531,-460.0,0.00020227,2]
[378482071,1754883040541,-460.0,0.00020227,2]
[378482074,1754883040552,-460.0,0.00020227,2]
[378482075,1754883040562,-460.0,0.00020227,2]
[378482077,1754883040572,-460.0,0.00020227,2]
[378482080,1754883040582,-1162.24,0.00020227,2]
[378482081,1754883040591,-460.0,0.00020227,2]
[378482083,1754883040600,-460.0,0.00020227,2]
[378482085,1754883040610,-460.0,0.00020227,2]
[378482087,1754883040621,-460.0,0.00020227,2]
[378482089,1754883040631,-335.16556592,0.00020227,2]
[378482091,1754883040641,-460.0,0.00020227,2]
[378482094,1754883040650,-2066.55,0.00020227,2]
[378482095,1754883040659,-460.0,0.00020227,2]
[378482098,1754883040669,-460.0,0.00020227,2]
[378482100,1754883040678,-460.0,0.00020227,2]
[378482101,1754883040687,-460.0,0.00020227,2]
[378482103,1754883040696,-460.0,0.00020227,2]
[378482105,1754883040706,-460.0,0.00020227,2]
[378482107,1754883040713,-151.0,0.00020228,2]
[378482109,1754883040723,-151.0,0.00020228,2]
[378482111,1754883040732,-500.0,0.00020228,2]
[378482113,1754883040741,-151.0,0.00020228,2]
[378482115,1754883040751,-500.0,0.00020228,2]
[378482117,1754883040759,-500.0,0.00020228,2]
[378482119,1754883040769,-151.0,0.00020228,2]
[378482121,1754883040778,-151.0,0.00020228,2]
[378482123,1754883040787,-151.0,0.00020228,2]
[378482125,1754883040799,-151.0,0.00020228,2]
[378482127,1754883040808,-500.0,0.00020228,2]
[378482129,1754883040817,-151.31414081,0.00020228,2]
[378482131,1754883040826,-500.0,0.00020228,2]
[378482133,1754883040835,-500.0,0.00020228,2]
[378482135,1754883040844,-151.0,0.00020228,2]
[378482137,1754883040853,-500.0,0.00020228,2]
[378482139,1754883040863,-500.0,0.00020228,2]
[378482141,1754883040873,-151.0,0.00020228,2]
[378482143,1754883040883,-277.76962266,0.00020228,2]
[378482146,1754883040895,-151.0,0.00020228,2]
[378482147,1754883040904,-607.35408176,0.00020228,2]
[378482148,1754883040913,-151.0,0.00020228,2]
[378482149,1754883040922,-500.0,0.00020228,2]
[378482151,1754883040932,-500.0,0.00020228,2]
[378482153,1754883040942,-460.0,0.00020228,2]
[378482154,1754883040952,-460.0,0.00020228,2]
[378482155,1754883040961,-460.0,0.00020228,2]
[378482156,1754883040971,-460.0,0.00020228,2]
[378482157,1754883040980,-693.47,0.00020228,2]
[378482158,1754883040990,-460.0,0.00020228,2]
[378482159,1754883040999,-460.0,0.00020228,2]
[378482160,1754883041009,-871.25,0.00020228,2]
[378482161,1754883041018,-460.0,0.00020228,2]
[378482162,1754883041028,-460.0,0.00020228,2]
[378482163,1754883041038,-460.0,0.00020228,2]
[378482164,1754883041049,-460.0,0.00020228,2]
[378482165,1754883041059,-500.0,0.00020228,2]
[378482166,1754883041068,-1490.3,0.00020228,2]
[378482167,1754883041078,-460.0,0.00020228,2]
[378482168,1754883041087,-460.0,0.00020228,2]
[378482169,1754883041097,-540.04,0.00020228,2]
[378482170,1754883041107,-460.0,0.00020228,2]
[378482171,1754883041116,-460.0,0.00020228,2]
[378482172,1754883041125,-460.0,0.00020228,2]
[378482173,1754883041135,-460.0,0.00020228,2]
[378482174,1754883041144,-621.27,0.00020228,2]
[378482175,1754883041153,-460.0,0.00020228,2]
[378482176,1754883041163,-460.0,0.00020228,2]
[378482177,1754883041173,-460.0,0.00020228,2]
[378482178,1754883041183,-2139.93,0.00020228,2]
[378482179,1754883041192,-460.0,0.00020228,2]
[378482180,1754883041201,-958.67,0.00020228,2]
[378482181,1754883041210,-500.0,0.00020229,2]
[378482182,1754883041220,-500.0,0.00020229,2]
[378482183,1754883041229,-500.0,0.00020229,2]
[378482184,1754883041239,-500.0,0.00020229,2]
[378482185,1754883041248,-151.0,0.00020229,2]
[378482186,1754883041257,-500.0,0.00020229,2]
[378482187,1754883041267,-460.0,0.00020229,2]
[378482188,1754883041276,-460.0,0.00020229,2]
[378482189,1754883041286,-460.0,0.00020229,2]
[378482190,1754883041295,-460.0,0.00020229,2]
[378482191,1754883041306,-460.0,0.00020229,2]
[378482192,1754883041316,-460.0,0.00020229,2]
[378482193,1754883041326,-460.0,0.00020229,2]
[378482194,1754883041335,-460.0,0.00020229,2]
[378482195,1754883041345,-460.0,0.00020229,2]